Cogmind - Beta 13 @@@ ROGUE MODE // 2024.07.20 @ 23:34:22 Player: CeJaay Result: Destroyed by C-40 Crusher with Compactor Performance ------------- Evolutions (3) 1500 Regions Visited (5) 1000 Robots Destroyed (24) 120 Value Destroyed (670) 670 Prototype IDs (0) 0 Alien Tech Used (0) 0 Bonus (0) 0 TOTAL SCORE: 3290 Bonus ------- None Cogmind --------- Core Integrity 0/700 Matter 250/300 Energy 99/100 System Corruption 8% Temperature Cool (0) Movement Core (50) Location -7/Waste Parts ------- > --- POWER (1) -------- (None) > --- PROPULSION (4) --- (None) > --- UTILITY (5) ------ (None) > --- WEAPON (3) ------- (None) > --- INVENTORY (5) ---- Transmission Jammer Peak State ------------ > --- POWER ------------ Light Nuclear Core > --- PROPULSION ------- Aluminum Leg Aluminum Leg Aluminum Leg Carbon-fiber Leg > --- UTILITY ---------- Medium Storage Unit Visual Processing Unit Target Analyzer Improved Medium Armor Plating Hacking Suite > --- WEAPON ----------- Heavy Assault Rifle Axe > --- INVENTORY -------- Micro Nuclear Core Carbon-fiber Leg Compact Wheel Advanced Weight Redist. System Terrain Scanner Force Booster Transmission Jammer Hacking Suite Remote Datajack Spear [Rating: 30] Favorites ----------- Power Light Ion Engine Engine Light Ion Engine Power Core Light Nuclear Core Propulsion Flight Unit Leg Aluminum Leg Wheel Compact Wheel Flight Unit Flight Unit Utility Visual Processing Unit Device Seismic Detector Storage Medium Storage Unit Processor Visual Processing Unit Hackware Hacking Suite Protection Improved Medium Armor Plating Weapon Minigun Energy Gun Small Laser Ballistic Gun Minigun Special Weapon Remote Datajack Impact Weapon Mace Slashing Weapon Axe Piercing Weapon Spear Special Melee Weapon Datajack Build | -11 -10 -9 -8 -7 -7 ------- Run | Yrd Mat Mat Mat Fac Was Slots Evolved 6 | . . 2 2 2 . Power . | . . . . . . Propulsion 2 | . . 1 1 . . Utility 3 | . . 1 1 1 . Weapon 1 | . . . . 1 . Parts Attached 69 | 7 9 14 12 23 4 Power 10 | 1 2 4 1 1 1 Engine 7 | 1 1 4 1 . . Core 3 | . 1 . . 1 1 Reactor . | . . . . . . Propulsion 21 | 2 5 3 5 5 1 Treads . | . . . . . . Leg 6 | . 2 . . 4 . Wheel 9 | 2 3 . 2 1 1 Hover . | . . . . . . Flight 6 | . . 3 3 . . Utility 17 | 2 . 2 3 10 . Device 6 | 1 . . 1 4 . Storage 3 | 1 . . . 2 . Processor 5 | . . 2 1 2 . Hackware 1 | . . . . 1 . Protection 2 | . . . 1 1 . Artifact . | . . . . . . Weapon 21 | 2 2 5 3 7 2 Energy Gun 4 | 1 1 . 2 . . Energy Cannon . | . . . . . . Ballistic Gun 7 | 1 1 . . 5 . Ballistic Cannon . | . . . . . . Launcher . | . . . . . . Special Weapon 1 | . . . . . 1 Impact Weapon 1 | . . 1 . . . Slashing Weapon 3 | . . 2 . 1 . Piercing Weapon 2 | . . . . 1 1 Special Melee Weapon 3 | . . 2 1 . . Unidentified Prototypes . | . . . . . . Parts Lost 30 | . . . 14 9 7 Power 4 | . . . 2 . 2 Propulsion 11 | . . . 5 3 3 Utility 5 | . . . 2 2 1 Weapon 10 | . . . 5 4 1 Highest Loss Streak 9 | . . . 8 9 5 To Critical Strikes 1 | . . . 1 . . Average Slot Usage (%) 81 | . 99 100 71 77 53 Engine 3 | . 8 11 6 . . Core 2 | . 5 . . 1 4 Leg 5 | . . . . 8 15 Wheel 7 | . 27 . 1 3 1 Flight 10 | . . 33 20 9 . Device 10 | . 14 11 9 9 . Storage 6 | . 14 5 . 5 4 Processor 9 | . . 16 15 10 9 Hackware 3 | . . . . 6 4 Protection 1 | . . . 4 1 2 Energy Gun 3 | . 13 . 1 . . Ballistic Gun 10 | . 14 11 5 11 4 Slashing Weapon 2 | . . 4 6 1 4 Piercing Weapon 1 | . . . . 2 . Naked Turns 21 | . . . . . 21 Heaviest Build 33 | 12 14 12 10 33 28 Greatest Support 45 | 32 32 12 16 45 45 Greatest Overweight (x) 5 | 2 . . 2 5 3 Average Overweight (x) . | . . . . . . Largest Inventory Capacity 10 | 8 8 8 5 10 10 Average Capacity 7 | 7 8 6 5 8 8 Most Carried 10 | 7 8 8 5 10 10 Average Carried 6 | 3 7 6 3 7 7 Final Capacity 10 | 8 8 5 5 10 5 Final Carried 10 | 7 8 5 5 10 1 Class Distribution -------------------- 79% | Mutant 17% | Scavenger-Mutant 3% | Scout Dominant Class ---------------- Mutant | -10/Materials Mutant | -9/Materials Mutant | -8/Materials Mutant | -7/Factory Scavenger-Mutant | -7/Waste Resources | -11 -10 -9 -8 -7 -7 ----------- Run | Yrd Mat Mat Mat Fac Was Matter Collected 1013 | 257 169 56 142 389 . Remotely . | . . . . . . Salvage Created 834 | 60 274 56 62 382 . Parts 57 | 6 20 3 3 25 . Haulers Intercepted . | . . . . . . Recyclers Shooed . | . . . . . . Parts Field Recycled . | . . . . . . Retrieved Matter . | . . . . . . Parts Self-Destructed . | . . . . . . Prevented . | . . . . . . Kills | -11 -10 -9 -8 -7 -7 ------- Run | Yrd Mat Mat Mat Fac Was Combat Hostiles Destroyed 19 | . 8 1 5 5 . Melee 3 | . . 1 2 . . Guns 15 | . 8 . 2 5 . Classes Destroyed 9 | 1 2 1 . 5 . Builder 2 | . . . . 2 . Tunneler 2 | 2 . . . . . Recycler 1 | . . . . 1 . Swarmer 7 | . 3 . 4 . . Grunt 7 | . 5 . 1 1 . Duelist 1 | . . . . 1 . Sentry 1 | . . 1 . . . Hunter 1 | . . . . 1 . Programmer 2 | . . . . 2 . Best Kill Streak 5 | 2 3 1 3 5 . Combat Bots Only 3 | . 3 1 3 3 . Max Kills in Single Turn 1 | 1 1 1 1 1 . Gunslinging . | . . . . . . Exploded . | . . . . . . Melee 1 | . . 1 1 . . Uniques/NPCs Destroyed . | . . . . . . Combat | -11 -10 -9 -8 -7 -7 -------- Run | Yrd Mat Mat Mat Fac Was Hostile Shots Fired 238 | . 37 4 89 100 8 Missed 75 | . 18 2 28 27 . Damage Taken 2977 | . 256 30 1071 1241 379 Core 1222 | . 75 . 420 381 346 Absorbed by Shields . | . . . . . . Core Remaining (%) 73 | 100 70 100 23 . . Volleys Fired 79 | 3 29 . 13 34 . Largest 2 | 2 2 . 1 2 . Hottest 60 | 60 60 . 40 50 . Shots Fired 126 | 6 58 . 13 49 . Gun 126 | 6 58 . 13 49 . Cannon . | . . . . . . Launcher . | . . . . . . Special . | . . . . . . Kinetic 88 | 3 29 . 7 49 . Thermal 38 | 3 29 . 6 . . Explosive . | . . . . . . Electromagnetic . | . . . . . . Robot Hit Streak 8 | 5 8 . 2 5 . Robot Miss Streak 6 | . 6 . 3 4 . Penetration Max . | . . . . . . Secondary Targets . | . . . . . . Shots Hit Robots 83 | 5 31 2 12 33 . Core Hits 43 | 2 15 1 6 19 . Critical Kills . | . . . . . . Critical Parts Destroyed . | . . . . . . Critical Strikes 2 | . . . . 2 . Impale 2 | . . . . 2 . Melee Attacks 42 | . . 5 29 6 2 Impact 2 | . . 2 . . . Slashing 35 | . . 3 28 3 1 Piercing 4 | . . . . 3 1 Sneak Attacks . | . . . . . . Combat Hostiles . | . . . . . . Follow-up Attacks . | . . . . . . Damage Inflicted 1262 | 59 351 56 170 626 . Guns 1023 | 59 344 . 48 572 . Cannons . | . . . . . . Explosions . | . . . . . . Melee 232 | . . 56 122 54 . Ramming 7 | . 7 . . . . Kinetic 775 | 25 162 . 16 572 . Thermal 248 | 34 182 . 32 . . Explosive . | . . . . . . Electromagnetic . | . . . . . . Impact 56 | . . 56 . . . Slashing 122 | . . . 122 . . Piercing 54 | . . . . 54 . Highest Corruption 8 | . . . 4 . 8 Average Corruption 5 | . . . 4 . 8 Corruption Purged . | . . . . . . Corruption Blocked . | . . . . . . Effects 6 | . . . 3 . 3 Message Errors 2 | . . . 1 . 1 Matter Fused 1 | . . . . . 1 Data Loss (minor) 1 | . . . 1 . . Data Loss (major) 2 | . . . 1 . 1 Overload Shots . | . . . . . . Overflow Damage 4 | . . . 4 . . Projectiles . | . . . . . . Explosions . | . . . . . . Melee 4 | . . . 4 . . Knockbacks . | . . . . . . Impact . | . . . . . . Kinetic . | . . . . . . Secondary . | . . . . . . Self-Inflicted Damage 3 | . 3 . . . . Shots . | . . . . . . Rammed 2 | . 2 . . . . Targets Rammed 2 | . 2 . . . . Kicked . | . . . . . . Crushed . | . . . . . . Highest Temperature 123 | . 123 . 19 17 . Average Temperature 35 | . 38 . 8 11 . Received Heat Transfer 744 | . 123 9 279 333 . Siege Activations . | . . . . . . Robots Corrupted . | . . . . . . Combat Hostiles . | . . . . . . Parts Fried . | . . . . . . Impact Corruptions . | . . . . . . Robots Melted . | . . . . . . Combat Hostiles . | . . . . . . Parts Melted . | . . . . . . Heat Transferred 575 | 75 425 . 75 . . Parts Sabotaged . | . . . . . . Parts Stolen . | . . . . . . Parts Stripped . | . . . . . . Power Chain Reactions . | . . . . . . Alert | -11 -10 -9 -8 -7 -7 ------- Run | Yrd Mat Mat Mat Fac Was Peak Influence 255 | 10 246 164 255 125 30 Initial 115 | . 6 103 68 115 15 Average 95 | 3 98 129 160 84 13 Maximum Alert Level 1 | . 1 . 1 . . Low Security (%) 89 | 100 79 100 58 100 100 Level 1 10 | . 20 . 41 . . Level 2 . | . . . . . . Level 3 . | . . . . . . Level 4 . | . . . . . . Level 5 . | . . . . . . High Security . | . . . . . . Max Security . | . . . . . . Squads Dispatched 8 | . 2 . 2 4 . Investigation 1 | . . . . 1 . Extermination 1 | . . . . 1 . Reinforcement 5 | . 2 . 2 1 . Assault . | . . . . . . Garrison 1 | . . . . 1 . Intercept . | . . . . . . Searches Triggered . | . . . . . . Construction Impeded . | . . . . . . Haulers Reinforced . | . . . . . . Active Scanning Responses . | . . . . . . Cargo Convoy Interrupts . | . . . . . . Stealth | -11 -10 -9 -8 -7 -7 --------- Run | Yrd Mat Mat Mat Fac Was Distress Signals 3 | . . . 3 . . Communications Jammed . | . . . . . . Distress Signals . | . . . . . . Times Spotted 56 | . 12 3 25 11 5 Peak Tracking Total 8 | . 4 2 8 5 5 Tactical Retreats 5 | . . . 5 . . Traps | -11 -10 -9 -8 -7 -7 ------- Run | Yrd Mat Mat Mat Fac Was Traps Triggered 5 | . 1 . . 4 . Indirectly . | . . . . . . Trap Hack Attempts . | . . . . . . Triggered . | . . . . . . Disarmed . | . . . . . . Reprogrammed . | . . . . . . Reused . | . . . . . . Traps Extracted . | . . . . . . Installed . | . . . . . . Triggered . | . . . . . . Machines | -11 -10 -9 -8 -7 -7 ---------- Run | Yrd Mat Mat Mat Fac Was Machines Disabled . | . . . . . . Max in Single Turn . | . . . . . . Machines Repaired . | . . . . . . Machines Dismantled . | . . . . . . Machines Sabotaged . | . . . . . . Overloaded Fab Kills . | . . . . . . Hacking | -11 -10 -9 -8 -7 -7 --------- Run | Yrd Mat Mat Mat Fac Was Machines Accessed 6 | . 2 1 1 2 . Terminals 6 | . 2 1 1 2 . Fabricators . | . . . . . . Repair Stations . | . . . . . . Recycling Units . | . . . . . . Scanalyzers . | . . . . . . Garrison Access . | . . . . . . Total Hacks 10 | . 5 2 1 2 . Successful 7 | . 4 1 1 1 . Failed 3 | . 1 1 . 1 . Catastrophic . | . . . . . . Database Lockouts . | . . . . . . Manual . | . . . . . . Terminals 10 | . 5 2 1 2 . Fabricators . | . . . . . . Repair Stations . | . . . . . . Recycling Units . | . . . . . . Scanalyzers . | . . . . . . Garrison Access . | . . . . . . Terminal Hacks 7 | . 4 1 1 1 . Record 1 | . . . 1 . . Emergency Access Points 1 | . 1 . . . . Alert Level 3 | . 1 1 . 1 . Locate Traps 1 | . 1 . . . . Zone Layout 1 | . 1 . . . . Fabricator Hacks . | . . . . . . Repair Station Hacks . | . . . . . . Recycling Unit Hacks . | . . . . . . Scanalyzer . | . . . . . . Garrison Access Hacks . | . . . . . . Unauthorized Hacks . | . . . . . . Terminals . | . . . . . . Fabricators . | . . . . . . Repair Stations . | . . . . . . Recycling Units . | . . . . . . Scanalyzers . | . . . . . . Garrison Access . | . . . . . . Data Cores Recovered . | . . . . . . Used . | . . . . . . Hacking Detections 5 | . 2 1 1 1 . Full Trace Events . | . . . . . . Feedback Events . | . . . . . . Feedback Blocked . | . . . . . . Robot Schematics Acquired . | . . . . . . Robots Built . | . . . . . . Authchips . | . . . . . . Time . | . . . . . . Total Robot Build Rating . | . . . . . . Part Schematics Acquired . | . . . . . . Parts Built . | . . . . . . Authchips . | . . . . . . Time . | . . . . . . Total Part Build Rating . | . . . . . . Parts Repaired . | . . . . . . Time . | . . . . . . Parts Recycled . | . . . . . . Recycled Matter . | . . . . . . Retrieved Matter . | . . . . . . Retrieved Components . | . . . . . . Parts Scanalyzed . | . . . . . . Part Schematics Acquired . | . . . . . . Parts Damaged . | . . . . . . Bothacking | -11 -10 -9 -8 -7 -7 ------------ Run | Yrd Mat Mat Mat Fac Was Used RIF Installer . | . . . . . . Robots Hacked . | . . . . . . Non-combat . | . . . . . . Combat . | . . . . . . Robot Hacks Applied . | . . . . . . Relay Couplers Released 3 | . . . . 3 . Programmers 3 | . . . . 3 . Fabnet Peak Effective % . | . . . . . . Robots Rewired . | . . . . . . Allies Hacked . | . . . . . . Hacks Repelled . | . . . . . . Allies | -11 -10 -9 -8 -7 -7 -------- Run | Yrd Mat Mat Mat Fac Was Total Allies . | . . . . . . Largest Group . | . . . . . . Highest-Rated Group . | . . . . . . Highest-Rated Ally . | . . . . . . Total Orders . | . . . . . . Ally Attacks . | . . . . . . Total Damage . | . . . . . . Kills . | . . . . . . Allies Corrupted . | . . . . . . Allies Melted . | . . . . . . Intel | -11 -10 -9 -8 -7 -7 ------- Run | Yrd Mat Mat Mat Fac Was Robot Analysis Total . | . . . . . . Derelict Logs Recovered . | . . . . . . Drone Launches . | . . . . . . Drone Recoveries . | . . . . . . Exploration | -11 -10 -9 -8 -7 -7 ------------- Run | Yrd Mat Mat Mat Fac Was Turns Passed 1813 | 78 366 132 303 831 103 Spaces Moved 1490 | 55 254 90 408 633 50 Core 26 | 13 . . 3 6 4 Treads . | . . . . . . Legs 197 | . . . . 152 45 Wheels 586 | 42 254 . 9 280 1 Hover . | . . . . . . Flight 681 | . . 90 396 195 . Fastest Speed 32 | 50 90 34 32 34 50 Average Speed 71 | 91 96 34 36 81 130 Slowest Speed 300 | 150 100 34 150 300 200 Overloaded Moves . | . . . . . . Propulsion Burnouts . | . . . . . . Robots Hopped 3 | . . . 3 . . Cave-ins Triggered 1 | . . . 1 . . Exploration Rate (%) 20 | 3 38 10 31 12 27 Regions Visited 5 Branch Regions . Pre-discovered Areas . | . . . . . . Known Exits Taken . | . . . . . . Unknown Exits Taken 4 | 1 1 1 1 . . Scrap Searched . | . . . . . . Spaces Dug 28 | . . 1 22 3 2 Terrain Destroyed 28 | . . 1 22 3 2 Melee 28 | . . 1 22 3 2 Projectile . | . . . . . . AOE . | . . . . . . Terrain Rammed . | . . . . . . Walls Destroyed . | . . . . . . Machines Disabled . | . . . . . . Actions | -11 -10 -9 -8 -7 -7 --------- Run | Yrd Mat Mat Mat Fac Was Total 2036 | 74 319 182 489 888 84 Wait 270 | . 13 59 17 153 28 Move 1480 | 54 253 89 401 633 50 Hop 3 | . . . 3 . . Pick Up 47 | 10 6 5 10 16 . Fast Attach 19 | 4 1 1 1 12 . Attach 37 | 3 1 7 11 11 4 Detach 5 | . . 3 1 1 . Swap 13 | . 7 6 . . . Drop 23 | . 7 7 3 6 . Fire 79 | 3 29 . 13 34 . Melee 42 | . . 5 29 6 2 Ram 2 | . 2 . . . . Kick . | . . . . . . Crush . | . . . . . . Escape Stasis 16 | . . . . 16 . Rewire . | . . . . . . Trap . | . . . . . . Miscellaneous . | . . . . . . Route ------- -11/Scrapyard -10/Materials -9/Materials -8/Materials (discovered 2 exits: *Fac / [*Sto]) -7/Factory -7/Waste History --------- Turn | Location | Event 2 | -11/Scrapyard | Met Revision 17 22 | -11/Scrapyard | Discovered new exit (range 15) 79 | -11/Scrapyard | Entered Materials 334 | -10/Materials | Build established: Mutant 363 | -10/Materials | Discovered new exit (range 9) 445 | -10/Materials | Entered another Materials area 445 | -9/Materials | Evolved 2 slots: Propulsion x1, Utility x1 573 | -9/Materials | Discovered new exit (range 9) 577 | -9/Materials | Entered another Materials area 577 | -8/Materials | Evolved 2 slots: Propulsion x1, Utility x1 714 | -8/Materials | Crushed by falling debris 758 | -8/Materials | Lost 3 parts (2n1u) 786 | -8/Materials | Core integrity fell below 50% 829 | -8/Materials | Lost 8 parts (2p2n1u3w) 842 | -8/Materials | Discovered new exit (range 13) 869 | -8/Materials | Discovered new exit (range 15) 880 | -8/Materials | Entered Factory 880 | -7/Factory | Evolved 2 slots: Utility x1, Weapon x1 890 | -7/Factory | Lost 3 parts (1n2w) 1442 | -7/Factory | Core integrity fell below 50% 1456 | -7/Factory | Lost 9 parts (3n2u4w) 1564 | -7/Factory | Garrison activated, responded to threat 1711 | -7/Factory | Sucked down chute 1711 | -7/Factory | Entered Waste 1726 | -7/Waste | EMP discharged 1731 | -7/Waste | Spotted C-40 Crusher 1755 | -7/Waste | Crushed by Compactor (1 part destroyed, 2 dropped) 1757 | -7/Waste | Build established: Scavenger-Mutant 1758 | -7/Waste | Spotted C-40 Crusher 1758 | -7/Waste | Spotted C-40 Crusher 1760 | -7/Waste | Spotted C-40 Crusher 1773 | -7/Waste | Crushed by Compactor (1 part destroyed, 2 dropped) 1776 | -7/Waste | Crushed by Compactor (1 part destroyed, 1 dropped) 1779 | -7/Waste | Crushed by Compactor (1 part destroyed, 1 dropped) 1779 | -7/Waste | Crushed by Compactor (1 part destroyed, 2 dropped) 1780 | -7/Waste | Core integrity fell below 20% 1810 | -7/Waste | Lost 5 parts (1p2n1u1w) 1812 | -7/Waste | Crushed by Compactor (1 part destroyed, 1 dropped) 1813 | -7/Waste | Crushed by Compactor (1 part destroyed) 1814 | -7/Waste | Spotted C-40 Crusher 1814 | -7/Waste | Destroyed by C-40 Crusher with Compactor Last Messages --------------- Aluminum Leg crushed. Force Booster crushed. Carbon-fiber Leg crushed. Hvy. Assault Rifle crushed. Axe crushed. Terrain Scanner crushed. Med. Storage Unit crushed. Aluminum Leg crushed. Adv. Weight Redist. System crushed. Lgt. Nuclear Core crushed. Spear crushed. Axe crushed. Target Analyzer crushed. Hacking Suite crushed. Visual Processing Unit crushed. Spear crushed. 6HWJE7 C%>J8SRSOA0:0KBU Com. Wheel crushed. Remote Datajack crushed. Mic. Nuclear Core crushed. Map ----- +----------------------------------------------------+ | ?????????????????????????????????????????????????? | | ?????????????????????????????????????????????????? | | ?????????????????????????????????????????????????? | | ?????????????????????????????????????????????????? | | ?????????????????????????????????????????????????? | | ?????????????????????????????????????????????????? | | ?????????????????????######??????????????????????? | | ?????????????????????# #??????????????????????? | | ?????????????????????# #??????????????????????? | | ?????????????????????# #??????????????????????? | | ?????????????????????# #??????????????????????? | | ???????????????????### #??????????????????????? | | ???????????????????# #??????????????????????? | | ???????????????????# #??????????????????????? | | ???????????????????# #??????????????????????? | | ???????????????????# #??????????????????????? | | ???????????????????### #??????????????????????? | | ?????????????????????# #??????????????????????? | | ?????????????????????# #?????????? #??????????? | | ?????????????????????# #???????? #??????????? | | ???????????????????### ######## ####???????? | | ???????????????????# ??????? | | ???????????????????# ??????? | | ???????????????????# CC C ??????? | | ???????????????????# CC ??????? | | ???????????????????### CC@######## ####???????? | | ???????############??# CC ###?????? #??????????? | | ???????# #??# CC! #???????? #??????????? | | ???????# #??# CC###????????????????????? | | ???????# #### CC #??????????????????????? | | ???????# CC #??????????????????????? | | ???????# #??????????????????????? | | ???????# #??????????????????????? | | ???????# #??????????????????????? | | ???????# #### #??????????????????????? | | ???????# #??# #??????????????????????? | | ???????# #??# #??????????????????????? | | ???????############??# #??????????????????????? | | ?????????????????????# #??????????????????????? | | ?????????????????????######??????????????????????? | | ?????????????????????????????????????????????????? | | ?????????????????????????????????????????????????? | | ?????????????????????????????????????????????????? | | ?????????????????????????????????????????????????? | | ?????????????????????????????????????????????????? | | ?????????????????????????????????????????????????? | | ?????????????????????????????????????????????????? | | ?????????????????????????????????????????????????? | | ?????????????????????????????????????????????????? | | ?????????????????????????????????????????????????? | +----------------------------------------------------+ Best States ------------- Heat Dissipation 34 Coolant Potential 50 Energy Generation 15 Energy Capacity 250 Matter Stores 300 Matter Capacity 300 Sight Range 18 Terrain Scan Range 16 Terrain Scan Density 85 Armor Coverage 225 Evasion (%) 63 Melee Accuracy 5 Target Analysis 5 Offensive Hacking 10 Item Schematics ----------------- None Robot Schematics ------------------ None Fabricated ------------ Nothing Alien Tech Used ----------------- None Achievements -------------- None Challenges ------------ None Game ------ Seed QuantumTacticalHammer Manual? 0 Play Time 00:29:49 Cumulative 11.7 hours Start 2024.07.20 @ 23:05:11 End 2024.07.20 @ 23:34:22 Sessions 1 Manual Loads 0 Difficulty Rogue Special Mode None Game No. 17 Rogue 17 Adventurer 0 Explorer 0 Win Type - Total 0 Types 0/0/0/0/0/0/0/0/0 Lore% 14 Gallery% 18 Achievement% 12 Wizard Run 0 Options --------- Layout 2 ASCII 0 Keyboard 0 Movement Arrows Keybinds 0 Fullscreen 2 Font 24/Smallcaps Map View 50x44 Zoom Use 0% Tactical HUD 0 Map Filters NONE Filters NONE Steam 1 RUN: 73193cfb-0598-4843-9589-5d7f2432f52d